fUSD/lending_fUSD_20240616
["ID","MTS","AMOUNT","RATE_DAILY","PERIOD"]
[329655721,1718544642348,-500.0,0.00023011,3]
[329655722,1718544642384,-500.0,0.00023011,3]
[329655723,1718544642405,-500.0,0.00023011,3]
[329655724,1718544642429,-500.0,0.00023011,3]
[329655725,1718544642473,-500.0,0.00023011,3]
[329655726,1718544642487,-500.0,0.00023011,3]
[329655727,1718544642499,-514.35274368,0.00023012,3]
[329655728,1718544642513,-500.0,0.00023012,3]
[329655729,1718544642533,-500.0,0.00023012,3]
[329655730,1718544642564,-500.0,0.00023012,3]
[329655731,1718544642582,-500.0,0.00023012,3]
[329655732,1718544642618,-150.59796536,0.00023012,3]
[329655733,1718544642631,-500.0,0.00023012,3]
[329655734,1718544642654,-500.0,0.00023012,3]
[329655735,1718544642666,-500.0,0.00023012,3]
[329655736,1718544642690,-930.3,0.00023012,3]
[329655737,1718544642702,-408.12179067,0.00023012,3]
[329655738,1718544642713,-500.0,0.00023012,3]
[329655739,1718544642726,-500.0,0.00023012,3]
[329655740,1718544642746,-500.0,0.00023012,3]
[329655741,1718544642772,-500.0,0.00023012,3]
[329655742,1718544642786,-3738.88,0.00023012,3]
[329655743,1718544642797,-500.0,0.00023012,3]
[329655744,1718544642837,-500.0,0.00023012,3]
[329655745,1718544642867,-500.0,0.00023012,3]
[329655746,1718544642881,-718.99,0.00023012,3]
[329655747,1718544642892,-659.03,0.00023012,3]
[329655748,1718544642905,-506.01,0.00023012,3]
[329655749,1718544642916,-500.0,0.00023012,3]
[329655750,1718544642931,-500.0,0.00023012,3]
[329655751,1718544642946,-500.0,0.00023012,3]
[329655752,1718544642958,-500.0,0.00023012,3]
[329655753,1718544642969,-500.0,0.00023012,3]
[329655754,1718544642982,-500.0,0.00023012,3]
[329655755,1718544643014,-500.0,0.00023012,3]
[329655756,1718544643026,-500.0,0.00023012,3]
[329655757,1718544643039,-500.0,0.00023012,3]
[329655758,1718544643053,-500.0,0.00023012,3]
[329655759,1718544643068,-500.0,0.00023012,3]
[329655760,1718544643095,-896.58,0.00023012,3]
[329655761,1718544643119,-500.0,0.00023012,3]
[329655762,1718544643155,-500.0,0.00023012,3]
[329655763,1718544643183,-500.0,0.00023012,3]
[329655764,1718544643208,-874.42,0.00023012,3]
[329655765,1718544643231,-500.0,0.00023013,3]
[329655766,1718544643259,-300.0,0.00023085,2]
[329655767,1718544643294,-500.0,0.00023186,3]
[329655768,1718544643341,-411.06598673,0.00023186,3]
[329655769,1718544643365,-500.0,0.00023186,3]
[329655770,1718544643385,-500.0,0.00023186,3]
[329655771,1718544643405,-410.22100591,0.00023186,3]
[329655772,1718544643426,-164.55378532,0.00023186,3]
[329655773,1718544643444,-500.0,0.00023186,3]
[329655774,1718544643471,-500.0,0.00023186,3]
[329655775,1718544643505,-500.0,0.00023186,3]
[329655776,1718544643562,-536.16,0.00023186,3]
[329655777,1718544643574,-3599.059,0.00023195,2]
[329655778,1718544643585,-675.11,0.00023257,2]
[329655779,1718544643598,-238.75898884,0.00023285,2]
[329655780,1718544643611,-500.0,0.00023285,3]
[329655781,1718544643622,-500.0,0.00023285,3]
[329655782,1718544643648,-259.20160391,0.00023285,3]
[329655783,1718544643663,-548.39,0.00023285,3]
[329655784,1718544643675,-500.0,0.00023285,3]
[329655785,1718544643686,-220.39934035,0.00023285,3]
[329655787,1718544643706,-500.0,0.00023285,3]
[329655790,1718544643756,-500.0,0.00023285,3]
[329655791,1718544643768,-500.0,0.00023285,3]
[329655792,1718544643790,-320.86951876,0.00023285,3]
[329655793,1718544643803,-500.0,0.00023285,3]
[329655794,1718544643818,-500.0,0.00023285,3]
[329655795,1718544643836,-500.0,0.00023285,3]
[329655796,1718544643847,-518.01,0.00023285,3]
[329655797,1718544643857,-500.0,0.00023285,3]
[329655798,1718544643871,-1771.31,0.00023285,3]
[329655799,1718544643883,-500.0,0.00023285,3]
[329655800,1718544643896,-500.0,0.00023285,3]
[329655801,1718544643906,-500.0,0.00023285,3]
[329655802,1718544643918,-601.86,0.00023285,3]
[329655803,1718544643929,-3517.42,0.00023285,3]
[329655804,1718544643941,-1034.33,0.00023285,3]
[329655806,1718544643967,-500.0,0.00023285,3]
[329655807,1718544644001,-500.0,0.00023285,3]
[329655808,1718544644015,-1817.46,0.00023285,3]
[329655809,1718544644028,-537.89486034,0.00023285,3]
[329655810,1718544644040,-501.45507534,0.00023285,3]
[329655811,1718544644052,-500.0,0.00023285,3]
[329655812,1718544644073,-185.04965196,0.00023285,3]
[329655813,1718544644089,-500.0,0.00023285,3]
[329655814,1718544644111,-500.0,0.00023285,3]
[329655815,1718544644140,-500.0,0.00023285,3]
[329655816,1718544644193,-500.0,0.00023285,3]
[329655817,1718544644205,-1219.58,0.00023285,3]
[329655818,1718544644218,-726.83625472,0.00023285,3]
[329655825,1718544644382,-684.98904437,0.00023285,3]
[329655826,1718544644410,-2236.69514022,0.00023285,3]
[329655827,1718544644426,-558.41956069,0.00023285,3]
[329655828,1718544644456,-374.89155219,0.00023285,3]
[329655829,1718544644470,-125.10844781,0.00023285,3]
[329655830,1718544644480,-593.91350038,0.00023285,3]
[329655831,1718544644492,-497.06649962,0.00023285,3]
[329655832,1718544644502,-149.268907,0.00023285,3]
[329655833,1718544644519,-307.8334,0.00023285,3]
[329655834,1718544644534,-42.897693,0.00023285,3]
[329655836,1718544644545,-553.67,0.00023285,3]
[329655839,1718544644570,-500.0,0.00023285,3]
[329655841,1718544644590,-500.0,0.00023285,3]
[329655842,1718544644604,-9180.26274976,0.00023285,3]
[329655846,1718544644676,-326.5417784,0.0002,2]
[329655848,1718544644721,-1755.9582216,0.00023285,3]
[329655852,1718544645152,-300.0,0.00021,2]
[329655853,1718544645175,-27.7311788,0.00023285,3]
[329655854,1718544645204,-6951.95784984,0.00023285,3]
[329655855,1718544645223,-500.0,0.00023285,3]
[329655856,1718544645237,-620.95,0.00023285,3]
[329655857,1718544645255,-500.0,0.00023285,3]
[329655858,1718544645309,-500.0,0.00023285,3]
[329655859,1718544645325,-282.95309407,0.00023285,3]
[329655860,1718544645380,-500.0,0.00023285,3]
[329655861,1718544645391,-500.0,0.00023285,3]
[329655862,1718544645428,-448.58202758,0.00023285,3]
[329655863,1718544645444,-514.27157696,0.00023285,3]
[329655864,1718544645495,-500.0,0.00023286,3]
[329655865,1718544645524,-500.0,0.00023286,3]
[329655866,1718544645536,-500.0,0.00023286,3]
[329655867,1718544645549,-500.0,0.00023286,3]
[329655868,1718544645573,-273.15747714,0.00023286,3]
[329655869,1718544645584,-408.74349125,0.00023286,3]
[329655870,1718544645630,-91.25650875,0.00023286,3]
[329655871,1718544645653,-930.3,0.00023286,3]
[329655872,1718544645676,-500.0,0.00023286,3]
[329655873,1718544645686,-230.77405859,0.00023286,3]
[329655874,1718544645702,-500.0,0.00023286,3]
[329655875,1718544645727,-1216.44313266,0.00023286,3]
[329655876,1718544645745,-2522.43686734,0.00023286,3]
[329655877,1718544645757,-205.04522127,0.00023286,3]
[329655878,1718544645771,-500.0,0.00023286,3]
[329655879,1718544645790,-418.97068778,0.00023286,3]
[329655880,1718544645815,-81.02931222,0.00023286,3]
[329655881,1718544645826,-718.99,0.00023286,3]
[329655882,1718544645838,-659.03,0.00023286,3]
[329655883,1718544645849,-506.01,0.00023286,3]
[329655884,1718544645859,-500.0,0.00023286,3]
[329655885,1718544645872,-500.0,0.00023286,3]
[329655886,1718544645920,-500.0,0.00023286,3]
[329655887,1718544645937,-500.0,0.00023286,3]
[329655888,1718544645953,-500.0,0.00023286,3]
[329655889,1718544645969,-500.0,0.00023286,3]
[329655890,1718544645981,-500.0,0.00023286,3]
[329655891,1718544645995,-500.0,0.00023286,3]
[329655892,1718544646009,-500.0,0.00023286,3]
[329655893,1718544646025,-430.23390544,0.00023286,3]
[329655894,1718544646042,-500.0,0.00023286,3]
[329655895,1718544646061,-896.58,0.00023286,3]
[329655896,1718544646072,-500.0,0.00023286,3]
[329655897,1718544646085,-500.0,0.00023286,3]
[329655898,1718544646116,-500.0,0.00023286,3]
[329655899,1718544646146,-874.42,0.00023286,3]
[329655900,1718544646163,-500.0,0.00023287,3]
[329655901,1718544646178,-391.95234138,0.00023356,2]
[329655902,1718544646226,-5832.7212916,0.00023359,2]
[329655903,1718544646275,-6138.8790084,0.00023359,2]
[329655904,1718544646309,-548.17,0.00023429,2]
[329655905,1718544646339,-386.78,0.0002346,3]
[329655906,1718544646354,-500.0,0.0002346,3]
[329655907,1718544646379,-500.0,0.0002346,3]
[329655908,1718544646408,-500.0,0.0002346,3]
[329655909,1718544646445,-500.0,0.0002346,3]
[329655910,1718544646457,-536.16,0.0002346,3]
[329655911,1718544646468,-548.39,0.00023559,3]
[329655912,1718544646492,-500.0,0.00023559,3]
[329655913,1718544646523,-594.00956187,0.00023559,3]
[329655914,1718544646539,-500.0,0.00023559,3]
[329655915,1718544646577,-500.0,0.00023559,3]
[329655916,1718544646594,-544.72841124,0.00023559,3]
[329655917,1718544646608,-500.0,0.00023559,3]
[329655918,1718544646643,-500.0,0.00023559,3]
[329655919,1718544646673,-518.01,0.00023559,3]
[329655920,1718544646717,-500.0,0.00023559,3]
[329655921,1718544646729,-1771.31,0.00023559,3]
[329655922,1718544646760,-500.0,0.00023559,3]
[329655923,1718544646780,-500.0,0.00023559,3]
[329655924,1718544646804,-500.0,0.00023559,3]
[329655925,1718544646840,-601.86,0.00023559,3]
[329655926,1718544646852,-3517.42,0.00023559,3]
[329655927,1718544646865,-1034.33,0.00023559,3]
[329655928,1718544646879,-500.0,0.00023559,3]
[329655929,1718544646890,-500.0,0.00023559,3]
[329655930,1718544646904,-1817.46,0.00023559,3]
[329655931,1718544646917,-500.0,0.00023559,3]
[329655932,1718544646950,-500.0,0.00023559,3]
[329655933,1718544646963,-500.0,0.00023559,3]
[329655934,1718544646980,-500.0,0.00023559,3]
[329655935,1718544647006,-403.67074695,0.00023559,3]
[329655936,1718544647022,-1219.58,0.00023559,3]
[329655937,1718544647034,-4206.94,0.00023559,3]
[329655938,1718544647052,-500.0,0.00023559,3]
[329655939,1718544647063,-1090.98,0.00023559,3]
[329655940,1718544647075,-500.0,0.00023559,3]
[329655941,1718544647092,-553.67,0.00023559,3]
[329655942,1718544647103,-500.0,0.00023559,3]
[329655943,1718544647120,-500.0,0.00023559,3]
[329655944,1718544647131,-17915.91,0.00023559,3]
[329655945,1718544647159,-500.0,0.00023559,3]
[329655947,1718544647174,-620.95,0.00023559,3]
[329655949,1718544647200,-500.0,0.00023559,3]
[329655951,1718544647213,-500.0,0.00023559,3]
[329655952,1718544647229,-500.0,0.00023559,3]
[329655954,1718544647243,-500.0,0.00023559,3]
[329655955,1718544647264,-500.0,0.0002356,3]
[329655956,1718544647316,-485.34542146,0.0002356,3]
[329655957,1718544647327,-500.0,0.0002356,3]
[329655958,1718544647338,-500.0,0.0002356,3]
[329655959,1718544647363,-500.0,0.0002356,3]
[329655960,1718544647377,-930.3,0.0002356,3]
[329655962,1718544647423,-500.0,0.0002356,3]
[329655964,1718544647445,-500.0,0.0002356,3]
[329655966,1718544647467,-146.05804163,0.0002356,3]
[329655967,1718544647688,-250.0,0.00022503,2]
[329655968,1718544647699,-3592.82195837,0.0002356,3]
[329655969,1718544647713,-500.0,0.0002356,3]
[329655970,1718544647724,-500.0,0.0002356,3]
[329655971,1718544647735,-628.79058377,0.0002356,3]
[329655972,1718544647761,-90.19941623,0.0002356,3]
[329655973,1718544647774,-659.03,0.0002356,3]
[329655974,1718544647795,-490.81868793,0.0002356,3]
[329655975,1718544647812,-15.19131207,0.0002356,3]
[329655976,1718544647824,-301.0282805,0.0002356,3]
[329655977,1718544647834,-500.0,0.0002356,3]
[329655978,1718544647856,-435.16420743,0.0002356,3]
[329655979,1718544648163,-64.83579257,0.0002356,3]
[329655980,1718544648175,-500.0,0.0002356,3]
[329655981,1718544648190,-500.0,0.0002356,3]
[329655982,1718544648202,-500.0,0.0002356,3]
[329655983,1718544648215,-500.0,0.0002356,3]
[329655984,1718544648229,-500.0,0.0002356,3]
[329655985,1718544648241,-500.0,0.0002356,3]
[329655986,1718544648255,-500.0,0.0002356,3]
[329655987,1718544648269,-896.58,0.0002356,3]
[329655988,1718544648284,-500.0,0.0002356,3]
[329655989,1718544648302,-500.0,0.0002356,3]
[329655990,1718544648328,-500.0,0.0002356,3]
[329655991,1718544648340,-874.42,0.0002356,3]
[329655992,1718544648362,-500.0,0.00023561,3]
[329655993,1718544648381,-500.0,0.00023734,3]
[329655994,1718544648398,-500.0,0.00023734,3]
[329655995,1718544648411,-500.0,0.00023734,3]
[329655996,1718544648430,-500.0,0.00023734,3]
[329655997,1718544648443,-536.16,0.00023734,3]
[329655998,1718544648470,-207.63727306,0.00023779,2]
[329655999,1718544648492,-328.78739308,0.00023779,2]
[329656000,1718544648504,-206.14054789,0.00023779,2]
[329656001,1718544648516,-1181.47356857,0.00023779,2]
[329656002,1718544648534,-400.0,0.00023779,2]
[329656003,1718544648561,-658.81738804,0.00023779,2]
[329656004,1718544648575,-500.0,0.00023833,3]
[329656005,1718544648590,-500.0,0.00023833,3]
[329656006,1718544648606,-500.0,0.00023833,3]
[329656007,1718544648622,-500.0,0.00023833,3]
[329656008,1718544648641,-500.0,0.00023833,3]
[329656009,1718544648655,-518.01,0.00023833,3]
[329656010,1718544648682,-500.0,0.00023833,3]
[329656011,1718544648711,-1771.31,0.00023833,3]
[329656012,1718544648725,-500.0,0.00023833,3]
[329656013,1718544648736,-500.0,0.00023833,3]
[329656014,1718544648752,-500.0,0.00023833,3]
[329656015,1718544648771,-601.86,0.00023833,3]
[329656016,1718544648783,-3517.42,0.00023833,3]
[329656017,1718544648795,-1034.33,0.00023833,3]
[329656018,1718544648809,-500.0,0.00023833,3]
[329656019,1718544648842,-500.0,0.00023833,3]
[329656020,1718544648852,-1817.46,0.00023833,3]
[329656021,1718544648870,-500.0,0.00023833,3]
[329656022,1718544648885,-500.0,0.00023833,3]
[329656023,1718544648896,-500.0,0.00023833,3]
[329656024,1718544648907,-500.0,0.00023833,3]
[329656025,1718544648928,-1219.58,0.00023833,3]
[329656026,1718544648947,-4206.94,0.00023833,3]
[329656027,1718544648958,-500.0,0.00023833,3]
[329656028,1718544648973,-1090.98,0.00023833,3]
[329656029,1718544648983,-500.0,0.00023833,3]
[329656030,1718544649002,-553.67,0.00023833,3]
[329656031,1718544649030,-500.0,0.00023833,3]
[329656032,1718544649041,-500.0,0.00023833,3]
[329656033,1718544649059,-17915.91,0.00023833,3]
[329656034,1718544649171,-500.0,0.00023833,3]
[329656035,1718544649207,-620.95,0.00023833,3]
[329656036,1718544649230,-500.0,0.00023833,3]
[329656037,1718544649243,-500.0,0.00023833,3]
[329656038,1718544649269,-523.85891304,0.00023833,3]
[329656039,1718544649293,-500.0,0.00023833,3]
[329656040,1718544649316,-500.0,0.00023834,3]
[329656041,1718544649327,-500.0,0.00023834,3]
[329656042,1718544649362,-500.0,0.00023834,3]
[329656043,1718544649375,-500.0,0.00023834,3]
[329656044,1718544649400,-500.0,0.00023834,3]
[329656045,1718544649468,-500.0,0.00023834,3]
[329656046,1718544649479,-3738.88,0.00023834,3]
[329656047,1718544649490,-639.50221095,0.00023834,3]
[329656048,1718544649500,-500.0,0.00023834,3]
[329656049,1718544649511,-718.99,0.00023834,3]
[329656050,1718544649530,-659.03,0.00023834,3]
[329656051,1718544649540,-506.01,0.00023834,3]
[329656052,1718544649552,-500.0,0.00023834,3]
[329656053,1718544649562,-500.0,0.00023834,3]
[329656054,1718544649576,-500.0,0.00023834,3]
[329656055,1718544649589,-500.0,0.00023834,3]
[329656056,1718544649599,-500.0,0.00023834,3]
[329656057,1718544649611,-500.0,0.00023834,3]
[329656058,1718544649621,-500.0,0.00023834,3]
[329656059,1718544649635,-500.0,0.00023834,3]
[329656060,1718544649646,-500.0,0.00023834,3]
[329656061,1718544649657,-896.58,0.00023834,3]
[329656062,1718544649673,-500.0,0.00023834,3]
[329656063,1718544649699,-500.0,0.00023834,3]
[329656064,1718544649713,-500.0,0.00023834,3]
[329656065,1718544649730,-874.42,0.00023834,3]
[329656066,1718544649756,-196.17934416,0.00023835,3]
[329656067,1718544649785,-112882.09201701,0.000239,2]
[329656068,1718544649800,-160.0,0.000239,2]
[329656069,1718544649811,-1000.0,0.00023991,2]
[329656070,1718544649830,-155.0,0.00024,2]
[329656071,1718544649842,-169.0,0.00024,2]
[329656072,1718544649853,-500.0,0.00024008,3]
[329656073,1718544649864,-500.0,0.00024008,3]
[329656074,1718544649883,-500.0,0.00024008,3]
[329656075,1718544649898,-500.0,0.00024008,3]
[329656076,1718544649915,-536.16,0.00024008,3]
[329656077,1718544649932,-391.95234138,0.00024075,2]
[329656078,1718544649950,-2059.47906552,0.00024106,2]
[329656079,1718544649969,-500.0,0.00024107,3]
[329656080,1718544649999,-500.0,0.00024107,3]
[329656081,1718544650076,-500.0,0.00024107,3]
[329656082,1718544650087,-500.0,0.00024107,3]
[329656083,1718544650101,-500.0,0.00024107,3]
[329656084,1718544650120,-518.01,0.00024107,3]
[329656085,1718544650133,-500.0,0.00024107,3]
[329656086,1718544650152,-1771.31,0.00024107,3]
[329656087,1718544650179,-500.0,0.00024107,3]
[329656088,1718544650221,-500.0,0.00024107,3]
[329656089,1718544650231,-500.0,0.00024107,3]
[329656090,1718544650265,-601.86,0.00024107,3]
[329656091,1718544650277,-3517.42,0.00024107,3]
[329656092,1718544650289,-1034.33,0.00024107,3]
[329656093,1718544650302,-194.69,0.00024107,3]
[329656094,1718544650312,-500.0,0.00024107,3]
[329656095,1718544650323,-1817.46,0.00024107,3]
[329656096,1718544650343,-500.0,0.00024107,3]
[329656097,1718544650358,-500.0,0.00024107,3]
[329656098,1718544650370,-500.0,0.00024107,3]
[329656099,1718544650396,-414.38872363,0.00024107,3]
[329656100,1718544650416,-1219.58,0.00024107,3]
[329656101,1718544650435,-4206.94,0.00024107,3]
[329656102,1718544650446,-500.0,0.00024107,3]
[329656103,1718544650465,-1090.98,0.00024107,3]
[329656104,1718544650481,-500.0,0.00024107,3]
[329656105,1718544650491,-553.67,0.00024107,3]
[329656106,1718544650507,-500.0,0.00024107,3]
[329656107,1718544650520,-500.0,0.00024107,3]
[329656108,1718544650531,-17915.91,0.00024107,3]
[329656109,1718544650545,-500.0,0.00024107,3]
[329656110,1718544650558,-620.95,0.00024107,3]
[329656111,1718544650572,-500.0,0.00024107,3]
[329656112,1718544650584,-500.0,0.00024107,3]
[329656113,1718544650602,-500.0,0.00024107,3]
[329656114,1718544650617,-500.0,0.00024108,3]
[329656115,1718544650640,-500.0,0.00024108,3]
[329656116,1718544650687,-500.0,0.00024108,3]
[329656117,1718544650702,-500.0,0.00024108,3]
[329656118,1718544650718,-620.83692215,0.00024108,3]
[329656119,1718544650741,-500.0,0.00024108,3]
[329656120,1718544650773,-3738.88,0.00024108,3]
[329656121,1718544650804,-500.0,0.00024108,3]
[329656122,1718544650839,-718.99,0.00024108,3]
[329656123,1718544650860,-659.03,0.00024108,3]
[329656124,1718544650875,-506.01,0.00024108,3]
[329656125,1718544650889,-500.0,0.00024108,3]
[329656126,1718544650900,-500.0,0.00024108,3]
[329656127,1718544650921,-431.47776534,0.00024108,3]
[329656128,1718544650942,-500.0,0.00024108,3]
[329656129,1718544650953,-500.0,0.00024108,3]
[329656130,1718544650966,-500.0,0.00024108,3]
[329656131,1718544650988,-500.0,0.00024108,3]
[329656132,1718544651001,-500.0,0.00024108,3]
[329656133,1718544651024,-500.0,0.00024108,3]
[329656134,1718544651041,-896.58,0.00024108,3]
[329656135,1718544651058,-500.0,0.00024108,3]
[329656136,1718544651070,-500.0,0.00024108,3]
[329656137,1718544651081,-255.60078779,0.00024108,3]
[329656138,1718544651094,-874.42,0.00024108,3]
[329656139,1718544651107,-180.0,0.0002423,2]
[329656140,1718544651125,-500.0,0.00024282,3]
[329656141,1718544651160,-500.0,0.00024282,3]
[329656142,1718544651181,-500.0,0.00024282,3]
[329656143,1718544651210,-500.0,0.00024282,3]
[329656144,1718544651227,-536.16,0.00024282,3]
[329656145,1718544651249,-500.0,0.00024381,3]
[329656146,1718544651260,-500.0,0.00024381,3]
[329656147,1718544651287,-500.0,0.00024381,3]
[329656148,1718544651299,-500.0,0.00024381,3]
[329656149,1718544651312,-500.0,0.00024381,3]
[329656150,1718544651324,-518.01,0.00024381,3]
[329656151,1718544651341,-500.0,0.00024381,3]
[329656152,1718544651355,-1771.31,0.00024381,3]
[329656153,1718544651370,-500.0,0.00024381,3]
[329656154,1718544651381,-500.0,0.00024381,3]
[329656155,1718544651392,-502.69966974,0.00024381,3]
[329656156,1718544651402,-601.86,0.00024381,3]
[329656157,1718544651412,-3517.42,0.00024381,3]
[329656158,1718544651423,-1034.33,0.00024381,3]
[329656159,1718544651436,-500.0,0.00024381,3]
[329656160,1718544651448,-1817.46,0.00024381,3]
[329656161,1718544651460,-500.0,0.00024381,3]
[329656162,1718544651477,-325.74796988,0.00024381,3]
[329656163,1718544651489,-500.0,0.00024381,3]
[329656164,1718544651500,-1219.58,0.00024381,3]
[329656165,1718544651516,-4206.94,0.00024381,3]
[329656166,1718544651554,-500.0,0.00024381,3]
[329656167,1718544651570,-1090.98,0.00024381,3]
[329656168,1718544651600,-500.0,0.00024381,3]
[329656169,1718544651613,-553.67,0.00024381,3]
[329656170,1718544651626,-543.06221131,0.00024381,3]
[329656171,1718544651636,-500.0,0.00024381,3]
[329656172,1718544651654,-17915.91,0.00024381,3]
[329656173,1718544651671,-500.0,0.00024381,3]
[329656174,1718544651684,-620.95,0.00024381,3]
[329656175,1718544651697,-500.0,0.00024381,3]
[329656176,1718544651713,-500.0,0.00024381,3]
[329656177,1718544651745,-500.0,0.00024381,3]
[329656178,1718544651760,-500.0,0.00024382,3]
[329656179,1718544651779,-500.0,0.00024382,3]
[329656180,1718544651790,-500.0,0.00024382,3]
[329656181,1718544651803,-500.0,0.00024382,3]
[329656182,1718544651814,-500.0,0.00024382,3]
[329656183,1718544651825,-3738.88,0.00024382,3]
[329656184,1718544651834,-500.0,0.00024382,3]
[329656185,1718544651845,-718.99,0.00024382,3]
[329656186,1718544651855,-659.03,0.00024382,3]
[329656187,1718544651866,-506.01,0.00024382,3]
[329656188,1718544651883,-450.81276018,0.00024382,3]
[329656189,1718544651901,-500.0,0.00024382,3]
[329656190,1718544651919,-500.0,0.00024382,3]
[329656191,1718544651949,-500.0,0.00024382,3]
[329656192,1718544651967,-500.0,0.00024382,3]
[329656193,1718544651980,-500.0,0.00024382,3]
[329656194,1718544651993,-500.0,0.00024382,3]
[329656195,1718544652004,-500.0,0.00024382,3]
[329656196,1718544652016,-896.58,0.00024382,3]
[329656197,1718544652030,-500.0,0.00024382,3]
[329656198,1718544652055,-500.0,0.00024382,3]
[329656199,1718544652067,-874.42,0.00024382,3]
[329656200,1718544652084,-226.35,0.00024384,2]
[329656201,1718544652107,-500.0,0.00024556,3]
[329656202,1718544652124,-500.0,0.00024556,3]
[329656203,1718544652144,-500.0,0.00024556,3]
[329656204,1718544652159,-500.0,0.00024556,3]
[329656205,1718544652173,-536.16,0.00024556,3]
[329656206,1718544652186,-11679.13853857,0.00024651,2]
[329656207,1718544652200,-500.0,0.00024655,3]
[329656208,1718544652217,-518.2798606,0.00024655,3]
[329656209,1718544652238,-500.0,0.00024655,3]
[329656210,1718544652251,-500.0,0.00024655,3]
[329656211,1718544652265,-350.70747823,0.00024655,3]
[329656212,1718544652290,-518.01,0.00024655,3]
[329656213,1718544652304,-500.0,0.00024655,3]
[329656214,1718544652328,-1771.31,0.00024655,3]
[329656215,1718544652343,-500.0,0.00024655,3]
[329656216,1718544652356,-500.0,0.00024655,3]
[329656217,1718544652377,-601.86,0.00024655,3]
[329656218,1718544652390,-3517.42,0.00024655,3]
[329656219,1718544652409,-1034.33,0.00024655,3]
[329656220,1718544652430,-500.0,0.00024655,3]
[329656221,1718544652443,-1817.46,0.00024655,3]
[329656222,1718544652469,-500.0,0.00024655,3]
[329656223,1718544652485,-500.0,0.00024655,3]
[329656224,1718544652507,-1219.58,0.00024655,3]
[329656225,1718544652525,-4206.94,0.00024655,3]
[329656226,1718544652540,-500.0,0.00024655,3]
[329656227,1718544652553,-1090.98,0.00024655,3]
[329656228,1718544652566,-500.0,0.00024655,3]
[329656229,1718544652581,-553.67,0.00024655,3]
[329656230,1718544652596,-500.0,0.00024655,3]
[329656231,1718544652610,-17915.91,0.00024655,3]
[329656232,1718544652629,-500.0,0.00024655,3]
[329656233,1718544652649,-620.95,0.00024655,3]
[329656234,1718544652663,-468.41848578,0.00024655,3]
[329656235,1718544652676,-500.0,0.00024655,3]
[329656236,1718544652690,-500.0,0.00024655,3]
[329656237,1718544652707,-510.88546543,0.00024656,3]
[329656238,1718544652739,-593.69481765,0.00024656,3]
[329656239,1718544652784,-500.0,0.00024656,3]
[329656240,1718544652801,-500.0,0.00024656,3]
[329656241,1718544652817,-500.0,0.00024656,3]
[329656242,1718544652833,-3738.88,0.00024656,3]
[329656243,1718544652848,-500.0,0.00024656,3]
[329656244,1718544652876,-718.99,0.00024656,3]
[329656245,1718544652888,-659.03,0.00024656,3]
[329656246,1718544652906,-506.01,0.00024656,3]
[329656247,1718544652935,-500.0,0.00024656,3]
[329656248,1718544652952,-500.0,0.00024656,3]